bitfinex/quotes_SOLUSD_20241031
["timestamp","ask_amount","ask_price","bid_price","bid_amount"]
[1730337432303,0.12549,176.2,176.15,43.645984]
[1730337432601,16.4046,176.21,176.19,11.15012842]
[1730337432797,11.7168,176.23,176.18,11.15012842]
[1730337433098,0.12549,176.22,176.18,11.15012842]
[1730337433687,0.12549,176.22,176.19,23.776884]
[1730337435199,0.12549,176.22,176.19,29.452484]
[1730337435890,81.15012842,176.24,176.19,40.60261242]
[1730337436081,0.12549,176.23,176.19,54.79181242]
[1730337439689,86.82422842,176.24,176.19,54.79181242]
[1730337439995,86.82422842,176.24,176.19,43.641684]
[1730337443409,11.15012842,176.23,176.19,43.641684]
[1730337444214,11.15012842,176.22,176.19,37.966084]
[1730337444397,11.15012842,176.2,176.17,5.676]
[1730337444598,11.15012842,176.19,176.17,5.676]
[1730337445615,11.15012842,176.2,176.16,23.776884]
[1730337446420,11.15012842,176.21,176.16,34.92701242]
[1730337446717,11.15012842,176.21,176.18,23.776884]
[1730337446894,11.15012842,176.2,176.18,23.776884]
[1730337447602,81.15012842,176.2,176.16,5.6765]
[1730337447911,70.0,176.2,176.16,5.6765]
[1730337448099,81.15012842,176.2,176.16,5.6765]
[1730337448506,70.0,176.2,176.16,16.82662842]
[1730337449215,70.0,176.2,176.17,23.776884]
[1730337449426,11.15012842,176.19,176.16,23.776884]
[1730337450498,16.82592842,176.19,176.16,23.776884]
[1730337451900,11.15012842,176.19,176.16,29.453484]
[1730337453225,11.15012842,176.18,176.16,23.776884]
[1730337454133,11.15012842,176.17,176.12,25.34472842]
[1730337454423,11.15012842,176.17,176.14,23.776884]
[1730337455314,11.15012842,176.17,176.14,29.453984]
[1730337455618,81.15012842,176.18,176.14,29.453984]
[1730337460912,11.15012842,176.19,176.14,54.79731242]
[1730337461121,86.82482842,176.22,176.18,23.776884]
[1730337462094,86.82482842,176.22,176.18,29.452784]
[1730337462425,0.12549,176.21,176.18,29.452784]
[1730337462598,11.27561842,176.21,176.18,29.452784]
[1730337463292,0.12549,176.18,176.14,14.1932]
[1730337463491,11.27561842,176.18,176.14,14.1932]
[1730337464511,11.27561842,176.18,176.14,19.8705]
[1730337464719,11.27561842,176.18,176.15,23.776884]
[1730337465220,70.0,176.15,176.11,19.8731]
[1730337465396,81.15012842,176.15,176.11,19.8731]
[1730337465595,11.15012842,176.14,176.11,19.8731]
[1730337466107,81.15012842,176.15,176.11,19.8731]
[1730337466829,81.15012842,176.15,176.12,29.454684]
[1730337481631,81.15012842,176.15,176.12,43.649484]
[1730337484939,11.15012842,176.14,176.12,43.649484]
[1730337486029,11.15012842,176.18,176.13,11.15012842]
[1730337486233,81.15012842,176.19,176.15,23.776884]
[1730337487034,11.15012842,176.18,176.14,23.776884]
[1730337487429,81.15012842,176.19,176.14,11.15012842]
[1730337487620,11.27561842,176.18,176.13,34.92701242]
[1730337488036,11.15012842,176.17,176.13,34.92701242]
[1730337488244,0.12549,176.16,176.14,19.8705]
[1730337488540,0.12549,176.16,176.13,29.454484]
[1730337488738,11.15012842,176.14,176.13,23.776884]
[1730337489047,11.15012842,176.14,176.12,5.6778]
[1730337489336,11.15012842,176.13,176.12,29.454684]
[1730337489638,70.0,176.15,176.12,29.454684]
[1730337489835,70.0,176.15,176.12,43.649484]
[1730337490440,81.15012842,176.15,176.12,43.649484]
[1730337492537,11.15012842,176.14,176.12,43.649484]
[1730337494839,27.78131842,176.13,176.08,11.15012842]
[1730337495141,81.15012842,176.09,176.03,31.03302842]
[1730337495328,11.15012842,176.06,176.03,19.8829]
[1730337495534,11.15012842,176.05,176.03,14.2021]
[1730337496220,11.15012842,176.06,176.03,19.8829]
[1730337496430,81.15012842,176.05,176.03,19.8829]
[1730337496728,11.27561842,176.04,176.0,14.2043]
[1730337497047,11.15012842,176.03,176.0,14.2043]
[1730337498750,11.27561842,176.04,176.0,14.2043]
[1730337498941,0.12549,176.04,176.0,14.2043]
[1730337499131,0.12549,176.04,176.0,25.35442842]
[1730337499755,0.12549,176.04,176.01,23.776884]
[1730337500052,0.12549,176.04,176.01,29.458184]
[1730337500556,11.27561842,176.04,176.01,29.458184]
[1730337501048,70.0,176.01,175.98,5.6824]
[1730337502432,70.0,176.01,175.98,11.15012842]
[1730337504258,11.15012842,176.0,175.97,14.2068]
[1730337504554,70.0,176.01,175.97,14.2068]
[1730337504555,11.15012842,175.99,175.97,14.2068]
[1730337504758,11.15012842,176.0,175.97,14.2068]
[1730337505140,70.12549,175.99,175.96,5.6831]
[1730337505463,81.27561842,175.99,175.96,5.6831]
[1730337506560,81.27561842,175.99,175.95,23.776884]
[1730337506768,81.27561842,175.99,175.95,34.92701242]
[1730337507455,70.12549,175.99,175.95,34.92701242]
[1730337508763,70.12549,175.99,175.96,5.6831]
[1730337511363,5.6815,176.01,175.98,11.15012842]
[1730337511364,70.0,176.01,175.98,11.15012842]
[1730337511748,0.12549,176.0,175.98,11.15012842]
[1730337513860,0.12549,176.02,175.99,34.92701242]
[1730337514642,0.12549,176.02,175.99,23.776884]
[1730337516743,0.12549,176.02,175.99,29.458884]
[1730337519368,70.0,176.01,175.92,28.421]
[1730337519561,0.12549,176.0,175.97,23.776884]
[1730337519763,0.12549,176.0,175.97,34.92701242]
[1730337520644,0.12549,176.0,175.97,40.60951242]
[1730337522446,86.83102842,176.03,175.98,11.15012842]
[1730337522746,0.12549,176.02,175.99,11.15012842]
[1730337523244,0.12549,176.02,175.98,11.15012842]
[1730337523456,0.12549,176.02,175.99,11.15012842]
[1730337524847,70.0,176.01,175.99,11.15012842]
[1730337525166,70.0,176.01,175.98,16.83222842]
[1730337525846,0.12549,176.02,175.99,11.15012842]
[1730337526365,0.12549,176.02,175.99,16.83202842]
[1730337530955,0.12549,176.02,175.98,31.03862842]
[1730337531270,0.12549,176.02,175.99,23.776884]
[1730337532278,11.27561842,176.02,175.99,29.458884]
[1730337535449,0.12549,176.02,175.99,40.60901242]
[1730337536152,0.12549,176.02,175.99,29.458884]
[1730337537874,0.12549,176.02,175.99,40.60901242]
[1730337538971,0.12549,176.02,175.99,29.458884]
[1730337540576,0.12549,176.02,175.99,40.60901242]
[1730337541187,0.12549,176.02,175.99,29.458884]
[1730337541561,81.15012842,176.01,175.98,14.2061]
[1730337541886,0.12549,176.0,175.98,14.2061]
[1730337549396,70.0,176.01,175.98,14.2061]
[1730337549571,70.0,176.01,175.99,11.15012842]
[1730337550070,70.0,176.01,175.98,31.03862842]
[1730337550610,70.0,176.03,176.0,34.92701242]
[1730337550899,0.12549,176.02,176.0,11.15012842]
[1730337551363,70.0,176.03,176.0,11.15012842]
[1730337551565,0.12549,176.04,176.01,16.83152842]
[1730337551768,0.12549,176.04,176.01,19.8851]
[1730337552794,70.0,176.03,176.01,14.2037]
[1730337553091,5.6803,176.05,175.98,14.206]
[1730337553092,70.0,176.01,175.98,14.206]
[1730337553289,81.15012842,176.01,175.98,14.206]
[1730337553598,0.12549,176.0,175.96,23.776884]
[1730337555295,0.12549,176.0,175.97,5.6827]
[1730337555696,70.0,175.99,175.97,5.6827]
[1730337559904,70.0,175.99,175.96,43.667384]
[1730337560096,0.12549,175.98,175.96,14.2075]
[1730337562679,0.12549,175.98,175.92,23.776884]
[1730337562880,0.12549,175.98,175.95,23.776884]
[1730337563977,70.0,175.97,175.94,14.2088]
[1730337564206,11.27561842,175.96,175.94,14.2088]
[1730337565211,11.27561842,175.96,175.92,29.461184]
[1730337565212,70.0,175.95,175.92,29.461184]
[1730337565706,70.0,175.95,175.92,5.6843]
[1730337567911,70.0,175.95,175.89,23.776884]
[1730337568083,0.12549,175.94,175.9,11.15012842]
[1730337568286,0.12549,175.94,175.91,23.776884]
[1730337569008,11.27561842,175.94,175.9,23.776884]
[1730337569190,11.27561842,175.94,175.9,43.674184]
[1730337572497,0.12549,175.94,175.9,54.82431242]
[1730337572697,11.27561842,175.94,175.9,43.674184]
[1730337574190,0.12549,175.94,175.9,54.82431242]
[1730337574488,0.12549,175.92,175.9,19.8973]
[1730337575913,0.12549,175.92,175.82,9.42923081]
[1730337576094,0.12549,175.92,175.89,11.15012842]
[1730337577310,0.12549,175.87,175.85,14.2166]
[1730337578299,70.0,175.88,175.85,19.9032]
[1730337581316,70.0,175.88,175.86,11.15012842]
[1730337581514,0.12549,175.87,175.86,11.15012842]
[1730337581891,0.12549,175.87,175.85,11.15012842]
[1730337582894,0.12549,175.87,175.85,16.83652842]
[1730337585514,70.0,175.9,175.86,34.92701242]
[1730337585712,70.0,175.9,175.88,11.15012842]
[1730337586727,0.12549,175.89,175.88,11.15012842]
[1730337586903,0.12549,175.89,175.88,16.83572842]
[1730337589645,0.12549,175.89,175.88,5.6856]
[1730337595637,0.12549,175.86,175.85,14.2166]
[1730337595826,11.27561842,175.86,175.85,14.2166]
[1730337597533,81.15012842,175.89,175.86,23.776884]
[1730337598239,70.0,175.89,175.86,23.776884]
[1730337598534,81.15012842,175.89,175.86,23.776884]
[1730337599437,81.15012842,175.89,175.86,29.462984]
[1730337599640,11.27561842,175.88,175.86,5.6861]
[1730337600233,0.12549,175.88,175.86,5.6861]
[1730337601224,0.12549,175.88,175.85,14.2166]
[1730337601438,0.12549,175.88,175.85,19.9032]
[1730337603151,0.12549,175.88,175.85,11.15012842]
[1730337604450,0.12549,175.88,175.86,11.15012842]
[1730337604742,70.0,175.91,175.87,11.15012842]
[1730337604946,0.12549,175.9,175.88,11.15012842]
[1730337605120,70.0,175.91,175.88,11.15012842]
[1730337605447,70.0,175.91,175.88,16.83552842]
[1730337605615,70.0,175.91,175.88,31.04972842]
[1730337606443,0.12549,175.9,175.88,31.04972842]
[1730337608934,76.6329,175.93,175.89,11.15012842]
[1730337609139,0.12549,175.92,175.9,11.15012842]
[1730337609441,0.12549,175.92,175.89,34.92701242]
[1730337611145,0.12549,175.92,175.89,40.61211242]
[1730337611539,0.12549,175.92,175.9,11.15012842]
[1730337611751,70.0,175.93,175.9,11.15012842]
[1730337612046,70.0,175.93,175.91,11.15012842]
[1730337612550,70.0,175.93,175.9,11.15012842]
[1730337613349,0.12549,175.92,175.9,11.15012842]
[1730337614752,0.12549,175.92,175.9,16.83512842]
[1730337616155,0.12549,175.92,175.9,5.685]
[1730337616752,0.12549,175.92,175.9,16.83512842]
[1730337618238,0.12549,175.92,175.89,14.2134]
[1730337618423,0.12549,175.92,175.86,25.36592842]
[1730337618424,70.0,175.9,175.86,25.36592842]
[1730337618632,70.0,175.88,175.86,19.9021]
[1730337618843,0.12549,175.87,175.86,14.2158]
[1730337619531,0.12549,175.87,175.86,19.9021]
[1730337619850,0.12549,175.89,175.86,31.05222842]
[1730337620160,0.12549,175.89,175.88,11.15012842]
[1730337620328,70.0,175.88,175.85,11.15012842]
[1730337620533,0.12549,175.87,175.84,16.83672842]
[1730337620855,0.12549,175.87,175.84,11.15012842]
[1730337621328,70.0,175.86,175.84,11.15012842]
[1730337622472,70.0,175.86,175.84,16.83692842]
[1730337628578,70.0,175.86,175.83,14.2178]
[1730337628579,70.0,175.86,175.83,25.36792842]
[1730337629571,70.0,175.86,175.84,11.15012842]
[1730337630974,70.0,175.88,175.85,11.15012842]
[1730337631180,70.0,175.88,175.86,11.15012842]
[1730337633167,70.0,175.88,175.86,16.83612842]
[1730337633855,70.0,175.88,175.86,5.686]
[1730337635070,0.12549,175.87,175.85,5.6866]
[1730337635279,0.12549,175.87,175.84,14.2174]
[1730337635280,70.0,175.86,175.84,14.2174]
[1730337635458,70.0,175.86,175.84,19.9043]
[1730337637072,70.0,175.86,175.84,11.15012842]
[1730337638177,70.0,175.86,175.84,16.83692842]
[1730337639479,70.0,175.86,175.83,25.36792842]
[1730337640558,70.0,175.86,175.83,31.05522842]
[1730337642782,0.12549,175.87,175.85,11.15012842]
[1730337644183,0.12549,175.87,175.85,16.83652842]
[1730337644766,0.12549,175.87,175.86,11.15012842]
[1730337644962,0.12549,175.87,175.85,31.05312842]
[1730337645270,70.0,175.88,175.86,11.15012842]
[1730337646073,70.0,175.88,175.86,31.05202842]
[1730337646478,70.0,175.88,175.86,19.9019]
[1730337646680,81.15012842,175.88,175.86,19.9019]
[1730337647665,81.15012842,175.88,175.86,14.2158]
[1730337647666,70.0,175.88,175.86,14.2158]
[1730337648891,70.0,175.88,175.86,31.05222842]
[1730337649385,22.254,175.9,175.86,31.05222842]
[1730337649589,16.569,175.9,175.87,11.15012842]
[1730337650875,16.569,175.9,175.88,5.6856]
[1730337652688,16.569,175.9,175.87,5.686]
[1730337653093,0.12549,175.88,175.86,14.2158]
[1730337653462,0.12549,175.86,175.83,14.2181]
[1730337653660,70.0,175.84,175.8,17.42722432]
[1730337653861,70.0,175.84,175.8,31.64792432]
[1730337656290,70.12549,175.81,175.8,0.5890959]
[1730337658258,0.12549,175.82,175.8,6.2772959]
[1730337660564,70.12549,175.81,175.8,0.5890959]
[1730337663207,70.12549,175.81,175.8,6.2772959]
[1730337663790,70.0,175.83,175.8,6.2772959]
[1730337663997,0.12549,175.82,175.8,20.4979959]
[1730337666978,70.0,175.83,175.8,31.64812432]
[1730337667184,81.15012842,175.83,175.8,20.4979959]
[1730337667383,70.0,175.83,175.8,20.4979959]
[1730337667595,81.15012842,175.83,175.8,20.4979959]
[1730337668794,0.12549,175.82,175.8,20.4979959]
[1730337668997,11.27561842,175.82,175.8,20.4979959]
[1730337669192,70.0,175.81,175.8,14.8097959]
[1730337669388,70.12549,175.81,175.8,14.8097959]
[1730337676587,70.12549,175.81,175.8,20.4979959]
[1730337701335,70.0,175.83,175.8,20.4979959]
[1730337701547,70.0,175.86,175.82,11.15012842]
[1730337701831,81.15012842,175.86,175.81,34.92701242]
[1730337702019,70.0,175.83,175.8,20.4979959]
[1730337703140,0.12549,175.82,175.8,20.4979959]
[1730337705941,0.12549,175.84,175.81,11.15012842]
[1730337707739,0.12549,175.84,175.83,19.9055]
[1730337709341,0.12549,175.84,175.83,14.2182]
[1730337712554,70.0,175.83,175.81,5.6879]
[1730337715351,70.12549,175.81,175.8,14.8093959]
[1730337715524,70.12549,175.81,175.8,20.4975959]
[1730337716154,70.0,175.83,175.8,20.4975959]
[1730337716335,0.12549,175.82,175.8,20.4975959]
[1730337721761,70.0,175.83,175.81,11.15012842]
[1730337722046,70.0,175.83,175.8,20.4975959]
[1730337722047,0.12549,175.84,175.82,11.15012842]
[1730337722425,0.12549,175.84,175.81,11.15012842]
[1730337722628,0.12549,175.84,175.8,20.4975959]
[1730337722629,70.12549,175.81,175.8,20.4975959]
[1730337724150,70.12549,175.81,175.8,14.8093959]
[1730337728058,70.12549,175.81,175.8,0.5890959]
[1730337733362,81.27561842,175.81,175.8,0.5890959]
[1730337737644,86.96351842,175.81,175.8,0.5890959]
[1730337740971,87.06351842,175.81,175.8,0.5890959]
[1730337745672,75.91339,175.81,175.8,0.5890959]
[1730337745871,87.06351842,175.81,175.8,0.5890959]
[1730337748277,86.83802842,175.81,175.8,0.5890959]
[1730337749456,86.96351842,175.81,175.8,0.5890959]
[1730337760999,81.27561842,175.81,175.8,0.5890959]
[1730337762201,86.96351842,175.81,175.8,0.5890959]
[1730337768798,81.15012842,175.81,175.8,0.5890959]
[1730337770288,81.27561842,175.81,175.8,0.5890959]
[1730337774208,86.96351842,175.81,175.8,0.5890959]
[1730337799132,87.06351842,175.81,175.8,0.5890959]
[1730337799919,87.16351842,175.81,175.8,0.5890959]
[1730337800614,87.06351842,175.81,175.8,0.5890959]
[1730337800835,87.16351842,175.81,175.8,0.5890959]
[1730337802436,107.16351842,175.81,175.8,0.5890959]
[1730337802639,70.0,175.71,175.68,5.6921]
[1730337802935,0.12549,175.7,175.69,14.2296]
[1730337807840,0.12549,175.7,175.67,5.6924]
[1730337807841,0.12549,175.68,175.67,5.6924]
[1730337809042,0.12549,175.68,175.66,19.9245]
[1730337814031,0.12549,175.68,175.66,25.38182842]
[1730337815146,0.12549,175.68,175.66,31.07462842]
[1730337815526,0.12549,175.7,175.67,11.15012842]
[1730337815721,0.12549,175.7,175.69,11.15012842]
[1730337816420,0.12549,175.7,175.66,19.9245]
[1730337816621,0.12549,175.7,175.68,11.15012842]
[1730337817327,0.12549,175.7,175.69,5.6918]
[1730337818226,0.12549,175.7,175.69,16.84192842]
[1730337818729,0.12549,175.7,175.69,5.6918]
[1730337821738,70.12549,175.69,175.68,19.922]
[1730337822465,70.12549,175.69,175.68,14.23]
[1730337827252,70.12549,175.69,175.68,25.38012842]
[1730337827253,70.0,175.69,175.68,25.38012842]
[1730337828531,70.0,175.69,175.68,31.07222842]
[1730337830859,70.0,175.69,175.68,14.23]
[1730337832165,70.0,175.69,175.68,19.9221]
[1730337832978,70.12549,175.67,175.66,5.6928]
[1730337834048,70.12549,175.67,175.65,19.9255]
[1730337834451,0.12549,175.64,175.63,39.2617026]
[1730337835572,0.12549,175.64,175.63,44.9554026]
[1730337836968,0.12549,175.64,175.63,56.10553102]
[1730337837474,70.0,175.65,175.63,56.10553102]
[1730337837775,70.12549,175.65,175.64,11.15012842]
[1730337838669,0.12549,175.67,175.64,31.07712842]
[1730337838879,0.12549,175.67,175.66,11.15012842]
[1730337839871,0.12549,175.67,175.66,16.84292842]
[1730337842968,0.12549,175.67,175.65,11.15012842]
[1730337843284,70.12549,175.65,175.64,19.927]
[1730337843468,70.12549,175.65,175.64,14.2336]
[1730337843783,70.12549,175.65,175.64,19.927]
[1730337844274,70.12549,175.65,175.63,44.9554026]
[1730337844486,70.12549,175.65,175.63,56.10553102]
[1730337846165,70.12549,175.65,175.63,44.9554026]
[1730337846353,70.12549,175.65,175.63,56.10553102]
[1730337846553,70.12549,175.65,175.63,44.9554026]
[1730337851570,70.12549,175.65,175.63,59.1898026]
[1730337852863,70.12549,175.65,175.63,70.33993102]
[1730337854692,70.12549,175.65,175.63,53.4961026]
[1730337854898,81.27561842,175.65,175.63,53.4961026]
[1730337855196,11.27561842,175.64,175.63,39.2617026]
[1730337856576,0.12549,175.64,175.63,39.2617026]
[1730337856784,11.27561842,175.64,175.63,39.2617026]
[1730337858983,0.12549,175.64,175.63,39.2617026]
[1730337863665,0.12549,175.64,175.63,56.10553102]
[1730337864576,70.0,175.65,175.63,70.33993102]
[1730337864781,70.0,175.65,175.64,11.15012842]
[1730337865588,70.0,175.69,175.65,48.3915]
[1730337865785,70.0,175.69,175.68,11.15012842]
[1730337866867,70.12549,175.69,175.68,11.15012842]
[1730337867589,70.12549,175.69,175.68,16.84222842]
[1730337869595,0.12549,175.71,175.68,59.53342842]
[1730337869895,0.12549,175.71,175.7,11.15012842]
[1730337870993,0.12549,175.71,175.7,16.84162842]
[1730337873193,0.12549,175.71,175.7,5.6915]
[1730337873407,70.12549,175.7,175.69,11.15012842]
[1730337873896,70.12549,175.7,175.69,16.84192842]
[1730337876084,70.12549,175.7,175.68,11.15012842]
[1730337877095,70.12549,175.7,175.69,5.6918]
[1730337877695,70.12549,175.7,175.69,16.84192842]
[1730337878176,70.12549,175.7,175.66,23.776884]
[1730337878375,70.12549,175.7,175.68,11.15012842]
[1730337878797,70.12549,175.7,175.69,11.15012842]
[1730337880299,70.12549,175.7,175.69,16.84192842]
[1730337892810,0.12549,175.69,175.68,11.15012842]
[1730337894425,0.12549,175.69,175.68,16.84222842]
[1730337898834,0.12549,175.69,175.68,36.84222842]
[1730337900727,0.12549,175.69,175.68,25.6921]
[1730337900922,0.12549,175.69,175.68,16.84222842]
[1730337902534,70.0,175.68,175.67,25.38092842]
[1730337902829,70.12549,175.68,175.67,45.38092842]
[1730337904214,70.12549,175.68,175.67,51.07332842]
[1730337907018,70.12549,175.68,175.67,39.9232]
[1730337907221,70.12549,175.68,175.67,19.9232]
[1730337907721,70.12549,175.68,175.67,14.2308]
[1730337908505,70.12549,175.68,175.67,19.9232]
[1730337909927,70.12549,175.68,175.67,31.07332842]
[1730337911419,86.4342,175.7,175.67,31.07332842]
[1730337911619,70.0,175.7,175.69,11.15012842]
[1730337912433,70.0,175.7,175.69,16.84192842]
[1730337912726,70.12549,175.7,175.69,16.84192842]
[1730337921620,70.12549,175.7,175.68,11.15012842]
[1730337923651,70.12549,175.7,175.69,16.84192842]
[1730337926726,70.12549,175.7,175.68,11.15012842]
[1730337929654,70.12549,175.7,175.69,5.6918]
[1730337935759,70.0,175.73,175.69,31.07152842]
[1730337935936,70.0,175.73,175.72,11.15012842]
[1730337936758,70.0,175.73,175.71,11.15012842]
[1730337937335,70.0,175.73,175.7,11.15012842]
[1730337937754,70.0,175.73,175.71,19.919]
[1730337937960,0.12549,175.72,175.71,14.2279]
[1730337938163,11.27561842,175.72,175.71,14.2279]
[1730337938342,0.12549,175.7,175.68,14.2302]
[1730337938539,70.0,175.69,175.68,14.2302]
[1730337938739,70.0,175.67,175.65,19.9256]
[1730337939637,70.0,175.67,175.65,14.2326]
[1730337941166,70.0,175.67,175.65,25.38272842]
[1730337941863,70.0,175.67,175.65,19.9257]
[1730337951471,70.0,175.67,175.65,14.2326]
[1730337952562,70.0,175.67,175.65,19.9257]
[1730337955886,70.0,175.67,175.65,14.2326]
[1730337959581,70.0,175.67,175.65,19.9257]
[1730337964692,70.0,175.67,175.65,14.2326]
[1730337964892,0.12549,175.66,175.65,14.2326]
[1730337971794,70.12549,175.64,175.63,39.2617026]
[1730337972009,81.27561842,175.64,175.63,39.2617026]
[1730337974703,96.83161842,175.64,175.63,39.2617026]
[1730337977381,102.52501842,175.64,175.63,39.2617026]
[1730337979510,96.83161842,175.64,175.63,39.2617026]
[1730337992819,96.83161842,175.64,175.63,44.9554026]
[1730337993498,70.12549,175.64,175.63,44.9554026]
[1730337993891,70.0,175.64,175.63,44.9554026]
[1730337995202,70.12549,175.64,175.63,44.9554026]
[1730338004205,70.0,175.64,175.63,44.9554026]
[1730338004531,70.0,175.64,175.63,56.10553102]
[1730338005796,0.12549,175.65,175.63,70.33993102]
[1730338006205,0.12549,175.65,175.64,11.15012842]
[1730338006599,0.12549,175.65,175.63,70.33993102]
[1730338007006,0.12549,175.65,175.63,59.1898026]
[1730338011631,0.12549,175.65,175.63,70.33993102]
[1730338015031,0.12549,175.65,175.63,59.1898026]
[1730338040258,70.0,175.66,175.64,11.15012842]
[1730338042061,70.0,175.66,175.65,5.6931]
[1730338042251,70.12549,175.66,175.65,5.6931]
[1730338053361,0.12549,175.65,175.64,19.927]
[1730338058389,70.0,175.68,175.64,31.07712842]
[1730338058552,0.12549,175.67,175.65,11.15012842]
[1730338058757,70.0,175.68,175.66,11.15012842]
[1730338060280,0.12549,175.67,175.66,11.15012842]
[1730338060489,0.12549,175.67,175.66,16.84292842]
[1730338063487,70.0,175.72,175.66,59.53892842]
[1730338063786,70.0,175.72,175.71,11.15012842]
[1730338065182,70.12549,175.72,175.71,11.15012842]
[1730338065784,70.12549,175.72,175.71,16.84122842]
[1730338066882,92.3347,175.75,175.71,31.06912842]
[1730338067076,92.3347,175.75,175.72,11.15012842]
[1730338067884,85.7948,175.75,175.73,19.9168]
[1730338068357,0.12549,175.74,175.73,19.9168]
[1730338068559,0.12549,175.74,175.73,31.06692842]
[1730338069468,70.0,175.77,175.73,31.06692842]
[1730338069787,70.0,175.77,175.75,11.15012842]
[1730338070284,70.0,175.77,175.76,5.6895]
[1730338070861,70.12549,175.77,175.76,5.6895]
[1730338072087,0.12549,175.77,175.76,16.83962842]
[1730338072766,70.12549,175.77,175.76,16.83962842]
[1730338073575,70.12549,175.77,175.76,5.6895]
[1730338073881,81.27561842,175.77,175.76,5.6895]
[1730338074377,70.0,175.75,175.73,19.9168]
[1730338077674,70.0,175.75,175.71,11.15012842]
[1730338079686,70.0,175.75,175.72,19.9179]
[1730338081089,70.0,175.75,175.72,11.15012842]
[1730338082886,0.12549,175.74,175.71,11.15012842]
[1730338083189,0.12549,175.74,175.72,19.9179]
[1730338083566,0.12549,175.74,175.72,31.06802842]
[1730338083867,0.12549,175.74,175.73,11.15012842]
[1730338084270,11.15012842,175.78,175.73,11.15012842]
[1730338084271,70.0,175.77,175.73,11.15012842]
[1730338084489,0.12549,175.76,175.75,11.15012842]
[1730338084884,0.12549,175.76,175.74,11.15012842]
[1730338085390,0.12549,175.76,175.75,5.6899]
[1730338085976,0.12549,175.76,175.75,16.84002842]
[1730338087880,0.12549,175.76,175.75,5.6899]
[1730338088464,70.0,175.77,175.75,31.06472842]
[1730338088670,0.12549,175.76,175.75,31.06472842]
[1730338088870,70.0,175.79,175.75,31.06472842]
[1730338089088,0.12549,175.78,175.75,31.06472842]
[1730338089290,27.56412842,175.81,175.76,11.15012842]
[1730338089678,27.56412842,175.81,175.75,11.15012842]
[1730338090968,27.56412842,175.81,175.76,19.9134]
[1730338091168,70.0,175.78,175.76,19.9134]
[1730338091694,0.12549,175.77,175.76,19.9134]
[1730338094201,70.0,175.8,175.76,31.06352842]
[1730338094871,0.12549,175.79,175.76,31.06352842]
[1730338095698,0.12549,175.79,175.76,19.9134]
[1730338098398,0.12549,175.79,175.77,11.15012842]
[1730338098593,0.12549,175.79,175.76,11.15012842]
[1730338099486,0.12549,175.79,175.77,19.9123]
[1730338102710,81.27561842,175.78,175.77,19.9123]
[1730338103001,81.27561842,175.78,175.77,14.2231]
[1730338103197,70.0,175.76,175.73,19.9161]
[1730338103384,0.12549,175.75,175.73,19.9161]
[1730338104601,0.12549,175.75,175.73,14.2256]
[1730338105603,70.12549,175.74,175.73,14.2256]
[1730338107197,0.12549,175.74,175.73,14.2256]
[1730338107591,0.12549,175.74,175.73,19.9161]
[1730338108608,70.12549,175.74,175.73,19.9161]
[1730338108810,0.12549,175.74,175.73,19.9161]
[1730338109589,0.12549,175.75,175.73,31.06622842]
[1730338111799,70.0,175.78,175.73,59.51892842]
[1730338112015,70.0,175.76,175.73,59.51892842]
[1730338112806,0.12549,175.77,175.74,11.15012842]
[1730338114614,70.0,175.78,175.75,31.06472842]
[1730338131595,70.0,175.78,175.75,19.9146]
[1730338134603,70.0,175.78,175.73,39.60282842]
[1730338135700,70.0,175.78,175.73,59.51962842]
[1730338140129,70.0,175.78,175.74,11.15012842]
[1730338141123,70.0,175.78,175.75,19.9146]
[1730338144623,70.0,175.78,175.75,14.2247]
[1730338146734,70.0,175.78,175.75,19.9146]
[1730338148442,70.0,175.78,175.74,28.4511]
[1730338149835,70.0,175.78,175.74,39.60122842]
[1730338150426,70.0,175.78,175.74,59.51692842]
[1730338152841,81.15012842,175.76,175.74,19.9157]